{"text_format":"1","workbook":"xlsx","n_sheets":5,"sheets":["様式第1号","様式第1号（別紙1）","様式第1号（別紙２）","様式第1号（別紙3）","プルダウン"],"not_rendered":{"charts":0,"images":0,"macros":1,"external_links":0,"defined_names":3,"comments":0,"pivot_tables":0},"unopened":[],"bounds":{"document_bytes":16777216,"sheet_cells":100000,"rows_first":2000,"rows_last":500,"rows_between":2000,"halvings":0,"cell_chars":16384,"cell_head_chars":4096},"cells_cut":0,"cells_raw":0,"read":"whole","date_system":"1900"}

{"sheet":"様式第1号","index":0,"n_rows":40,"n_cols":16,"rows_kept":40,"cut":false,"hidden":false,"merged":[[7,10,7,13],[11,18,11,19],[37,7,37,10],[11,0,12,14],[13,0,13,14],[9,0,9,14],[15,1,15,4],[15,6,15,10],[18,1,18,5],[4,2,5,4],[6,2,6,4],[7,2,7,4],[4,5,4,6],[5,5,5,6],[7,5,7,8],[1,11,1,14],[4,7,4,9],[4,11,4,13],[5,7,5,13],[6,5,6,13],[3,5,3,6],[3,7,3,9],[3,11,3,13]]}
["様式第1号（第8条関係）",null,null,null,null,null,null,null,null,null,null,null,null,null,null,"（令和８年度申請用）"]
[null,null,null,null,null,null,null,null,null,null,null,"年　　月　　日"]
[]
["東京都知事殿",null,null,null,null,"郵便番号",null,null,null,null,"―"]
[null,null,"事業主の所在地",null,null,"都道\n府県",null,null,null,null,"区市\n町村"]
[null,null,null,null,null,"丁目・番地・号・建物名"]
[null,null,"事業主の名称",null,null,null,null,null,null,null,null,null,null,null,"印"]
[null,null,"代表者役職",null,null,null,null,null,null,"代表者氏名"]
[]
["東京都就職氷河期世代等安定就業サポート助成金\n事業実施計画書兼交付申請書"]
[]
["　東京都氷河期世代等安定就業サポート助成金（以下「助成金」という。）について、助成金交付要綱第8条に基づき、下記のとおり申請します。"]
[]
["記"]
["1　事業実施予定期間（支援期間）"]
[null,null,null,null,null,"から",{"$f":"IFERROR(VLOOKUP(B16,プルダウン!A:W,2,FALSE),\"\")","v":""},null,null,null,null,"まで"]
["2　事業実施計画"]
[]
[null,"【正規雇用等コース】"]
[null,"(1)対象労働者数"]
[null,"(2)退職金制度整備加算申請",null,null,null,null,{"$f":"IF(プルダウン!I6>1,\"無効な入力です\",\"\")","v":""}]
[]
[]
[null,"(3)結婚・育児支援制度整備加算申請"]
[]
[]
[null,"(4)介護支援制度整備加算申請"]
[]
[]
[null,"(5)賃上げ加算申請",null,null,{"$f":"IF(プルダウン!L8>1,\"無効な入力です\",\"\")","v":""}]
[]
[null,"   賃上げを実施"]
[]
[null,"【安定有期雇用コース】",null,null,null,{"$f":"IF(プルダウン!R8>1,\"無効な入力です\",\"\")","v":""}]
[null,"(1)対象労働者数"]
[]
["3 助成金交付申請額"]
[null,null,null,null,null,null,"金",{"$f":"プルダウン!T9","v":0},null,null,null,"円"]
[]
[null,null,null,{"$f":"IF((プルダウン!H15+プルダウン!R15)>5,\"無効な入力です\",\"\")","v":""},null,null,null,{"$f":"IF((プルダウン!H15+プルダウン!R15)<プルダウン!Q15,\"無効な入力です\",\"\")","v":""}]

{"sheet":"様式第1号（別紙1）","index":1,"n_rows":40,"n_cols":12,"rows_kept":40,"cut":false,"hidden":false,"merged":[[27,3,27,11],[29,3,29,11],[28,3,28,11],[32,5,32,11],[38,3,38,4],[37,3,37,4],[37,5,37,11],[38,5,38,11],[36,10,36,11],[34,10,35,11],[31,3,32,3],[31,5,31,7],[31,9,31,11],[30,3,30,4],[30,8,30,11],[22,3,22,11],[23,3,23,11],[26,5,26,11],[4,1,4,7],[10,1,10,7],[14,4,14,11],[5,1,9,1],[11,2,11,3],[11,6,11,7],[7,2,7,4],[8,2,8,4],[5,2,5,3],[6,2,6,4],[9,2,9,3],[9,6,9,7],[14,3,15,3],[20,4,20,5],[20,6,20,11],[3,6,3,7],[5,6,5,7],[6,6,6,7],[7,6,7,7],[8,6,8,7],[17,3,17,11],[18,3,18,4],[18,8,18,11],[19,3,20,3],[19,5,19,7],[19,9,19,11],[24,3,24,4],[24,8,24,11],[25,3,26,3],[25,5,25,7],[25,9,25,11],[14,1,26,1],[14,2,26,2],[36,1,38,1],[36,2,38,2],[36,4,36,8],[33,8,33,9],[34,1,35,1],[34,2,35,2],[34,3,35,6],[34,7,35,7],[34,8,35,9],[27,1,32,1],[27,2,32,2],[21,3,21,11],[15,4,15,11],[16,3,16,11]]}
["様式第1号（第8条関係）別紙1",null,null,null,null,null,null,null,null,null,null,"（令和８年度申請用）"]
[]
["４ 助成金交付申請額内訳"]
[null,null,null,null,null,null,"交付申請額"]
[null,"　正規雇用等コース"]
[null,null,"対象労働者",null,{"$f":"G6/300000","v":0},"１人30万円",{"$f":"プルダウン!M9","v":0}]
[null,null,"退職金制度整備加算申請",null,null,"　　10万円",{"$f":"プルダウン!N9","v":0}]
[null,null,"結婚・育児支援制度整備加算",null,null,"　　10万円",{"$f":"プルダウン!O9","v":0}]
[null,null,"介護支援制度整備加算",null,null,"　　10万円",{"$f":"プルダウン!P9","v":0}]
[null,null,"賃上げ加算",null,{"$f":"G10/120000","v":0},"１人12万円",{"$f":"プルダウン!Q9","v":0}]
[null,"　安定有期雇用コース"]
[null,null,"対象労働者",null,{"$f":"G12/200000","v":0},"１人20万円",{"$f":"プルダウン!S9","v":0}]
[]
["５　事業主の概要"]
[null,"①","雇用保険適用\n事業所の所在地","㋐\n(該当する項目をチェック☑）","\n　　特定求職者雇用開発助成金の支給決定を受けた事業主\n　　（中高年層安定雇用支援コース又は就職氷河期世代安定雇用実現コース）\n　　特定求職者雇用開発助成金の支給決定を受けた雇用保険適用事業所の所在地\n　　"]
[null,null,null,null,"　　東京都の就職支援事業を利用した事業主\n　　対象労働者が採用時に在籍した雇用保険適用事業所の所在地　　"]
[null,null,null,"　　　事業主（本社）の所在地"]
[null,null,null,"　　　事業主（本社）とは異なる事業所の所在地（下記に住所を記載）"]
[null,null,null,"郵便番号",null,null,"-"]
[null,null,null,"住所","都道\n府県",null,null,null,"区市\n町村"]
[null,null,null,null,"丁目・番地・号\n建物名"]
[null,null,null,"　㋑対象労働者が現在在籍している雇用保険適用事業所"]
[null,null,null,"　　　㋐と㋑が同じ住所（移転なし）"]
[null,null,null,"　　　㋐と㋑の住所が異なる（下記に住所を記載）"]
[null,null,null,"郵便番号",null,null,"-"]
[null,null,null,"住所","都道\n府県",null,null,null,"区市\n町村"]
[null,null,null,null,"丁目・番地・号\n建物名"]
[null,"②","書類送付先","　　　事業主の所在地（印鑑証明書記載の住所）"]
[null,null,null,"　　　①で記載した所在地(㋑がある場合は㋑）"]
[null,null,null,"　　　その他（下記に送付先を記載）※代理人への書類の送付はできません。）"]
[null,null,null,"郵便番号",null,null,"-"]
[null,null,null,"住所","都道\n府県",null,null,null,"区市\n町村"]
[null,null,null,null,"丁目・番地・号\n建物名"]
[null,"③","今年度既に申請した人数\n(同一雇用保険適用事業所内)",null,"人",null,null,"④","常用労働者数",null,null,"人"]
[null,"⑤","業種※1 ",null,null,null,null,"⑥","事業内容"]
[]
[null,"⑦","申請担当者連絡先","所属",null,null,null,null,null,"氏名"]
[null,null,null,"電話番号（所属）※必須"]
[null,null,null,"電話番号（携帯）※任意"]
[null,"※1 日本標準産業分類（大分類）に基づき、アルファベットと業種名を記入してください。"]

{"sheet":"様式第1号（別紙２）","index":2,"n_rows":45,"n_cols":23,"rows_kept":45,"cut":false,"hidden":false,"merged":[[42,4,42,22],[44,1,44,5],[44,6,44,7],[44,8,44,13],[44,14,44,17],[44,18,44,19],[44,20,44,22],[43,1,43,5],[43,6,43,7],[43,8,43,13],[43,14,43,17],[43,18,43,19],[43,20,43,22],[37,1,42,2],[37,4,37,22],[38,4,38,6],[39,4,40,6],[39,7,39,22],[40,7,40,22],[41,4,41,22],[35,8,36,9],[35,10,35,11],[35,12,35,17],[35,18,35,22],[36,3,36,7],[36,10,36,11],[36,12,36,17],[36,18,36,22],[33,1,33,2],[33,3,33,12],[33,13,33,18],[33,19,33,21],[34,1,34,2],[34,10,34,13],[35,1,36,2],[35,3,35,7],[31,1,31,5],[31,6,31,7],[31,8,31,13],[31,14,31,17],[31,18,31,19],[31,20,31,22],[30,1,30,5],[30,6,30,7],[30,8,30,13],[30,14,30,17],[30,18,30,19],[30,20,30,22],[7,1,7,2],[7,3,7,12],[7,13,7,18],[7,19,7,21],[8,1,8,2],[8,10,8,13],[9,1,10,2],[9,3,9,7],[9,8,10,9],[9,10,9,11],[9,12,9,17],[9,18,9,22],[10,3,10,7],[10,10,10,11],[10,12,10,17],[10,18,10,22],[18,14,18,17],[18,18,18,19],[11,1,16,2],[11,4,11,22],[12,4,12,6],[13,4,14,6],[13,7,13,22],[14,7,14,22],[15,4,15,22],[18,20,18,22],[17,1,17,5],[17,6,17,7],[17,8,17,13],[17,14,17,17],[17,18,17,19],[17,20,17,22],[18,1,18,5],[18,6,18,7],[18,8,18,13],[16,4,16,22],[24,4,24,22],[25,4,25,6],[26,4,27,6],[26,7,26,22],[27,7,27,22],[28,4,28,22],[24,1,29,2],[20,1,20,2],[20,3,20,12],[20,13,20,18],[20,19,20,21],[21,1,21,2],[21,10,21,13],[22,1,23,2],[22,3,22,7],[22,8,23,9],[22,10,22,11],[22,12,22,17],[22,18,22,22],[23,3,23,7],[23,10,23,11],[23,12,23,17],[23,18,23,22],[29,4,29,22]]}
["様式第1号（第8条関係）別紙2",null,null,null,null,null,null,null,null,null,null,null,null,null,null,null,null,null,null,null,null,null,"（令和８年度申請用）"]
[]
["６　雇用保険適用事業所番号"]
[null,null,null,null,null,"-",null,null,null,null,null,null,"-"]
[]
["７　対象労働者の情報"]
["（１）対象労働者"]
[null,"氏名",null,null,null,null,null,null,null,null,null,null,null,"採用日（非正規雇用労働者として採用\nされた場合はその採用日）時点の満年齢",null,null,null,null,null,null,null,null,"歳"]
[null,"採用日",null,"令和",null,"年",null,"月",null,"日","正規転換日",null,null,null,"令和",null,"年",null,"月",null,"日"]
[null,"コース",null,"　　正規雇用等コース",null,null,null,null,"労働契約期間",null,"　　　無期　",null,"　　３年以上(就職氷河期世代)　　",null,null,null,null,null,"　 ２年以上(シニア世代)"]
[null,null,null,"　　安定有期雇用コース",null,null,null,null,null,null,null,null,"　　１年以上３年未満(就職氷河期世代)",null,null,null,null,null," 　１年以上２年未満(シニア世代)"]
[null,"受給資格\n確認",null,null,"特定求職者雇用開発助成金　（中高年層安定雇用支援コース又は就職氷河期世代安定雇用実現コース）の支給決定を受けた。"]
[null,null,null,null,"助成金支給番号",null,null,null,null,null,null,null,"-",null,null,null,null,null,null,null,null,"-"]
[null,null,null,null,"支給決定内容",null,null,"　　支給申請額どおりに支給決定を受けた。"]
[null,null,null,null,null,null,null,"　　支給申請額に対し増額又は減額の支給決定を受けた。（申立書（参考様式1）の提出が必要です。）"]
[null,null,null,null,"以下の東京都の就職支援事業に参加し、職業紹介を受け、対象労働者を採用した。"]
[]
[null,"採用日時点\n所属事務所所在地（区市町村まで）",null,null,null,null,"東京都",null,null,null,null,null,null,null,"派遣（出向）の有無",null,null,null,"　　有る",null,"　　無し"]
[null,"申請日時点\n所属事務所所在地（区市町村まで）",null,null,null,null,"東京都",null,null,null,null,null,null,null,"派遣（出向）の有無",null,null,null,"　　有る",null,"　　無し"]
["（２）対象労働者"]
[null,"氏名",null,null,null,null,null,null,null,null,null,null,null,"採用日（非正規雇用労働者として採用\nされた場合はその採用日）時点の満年齢",null,null,null,null,null,null,null,null,"歳"]
[null,"採用日",null,"令和",null,"年",null,"月",null,"日","正規転換日",null,null,null,"令和",null,"年",null,"月",null,"日"]
[null,"コース",null,"　　正規雇用等コース",null,null,null,null,"労働契約期間",null,"　　　無期　",null,"　　３年以上(就職氷河期世代)　　",null,null,null,null,null,"　 ２年以上(シニア世代)"]
[null,null,null,"　　安定有期雇用コース",null,null,null,null,null,null,null,null,"　　１年以上３年未満(就職氷河期世代)",null,null,null,null,null," 　１年以上２年未満(シニア世代)"]
[null,"受給資格確認",null,null,"特定求職者雇用開発助成金　（中高年層安定雇用支援コース又は就職氷河期世代安定雇用実現コース）の支給決定を受けた。"]
[null,null,null,null,"助成金支給番号",null,null,null,null,null,null,null,"-",null,null,null,null,null,null,null,null,"-"]
[null,null,null,null,"支給決定内容",null,null,"　　支給申請額どおりに支給決定を受けた。"]
[null,null,null,null,null,null,null,"　　支給申請額に対し増額又は減額の支給決定を受けた。（申立書（参考様式1）の提出が必要です。）"]
[null,null,null,null,"以下の東京都の就職支援事業に参加し、職業紹介を受け、対象労働者を採用した。"]
[]
[null,"採用日時点\n所属事務所所在地（区市町村まで）",null,null,null,null,"東京都",null,null,null,null,null,null,null,"派遣（出向）の有無",null,null,null,"　　有る",null,"　　無し"]
[null,"申請日時点\n所属事務所所在地（区市町村まで）",null,null,null,null,"東京都",null,null,null,null,null,null,null,"派遣（出向）の有無",null,null,null,"　　有る",null,"　　無し"]
["（３）対象労働者"]
[null,"氏名",null,null,null,null,null,null,null,null,null,null,null,"採用日（非正規雇用労働者として採用\nされた場合はその採用日）時点の満年齢",null,null,null,null,null,null,null,null,"歳"]
[null,"採用日",null,"令和",null,"年",null,"月",null,"日","正規転換日",null,null,null,"令和",null,"年",null,"月",null,"日"]
[null,"コース",null,"　　正規雇用等コース",null,null,null,null,"労働契約期間",null,"　　　無期　",null,"　　３年以上(就職氷河期世代)　　",null,null,null,null,null,"　 ２年以上(シニア世代)"]
[null,null,null,"　　安定有期雇用コース",null,null,null,null,null,null,null,null,"　　１年以上３年未満(就職氷河期世代)",null,null,null,null,null," 　１年以上２年未満(シニア世代)"]
[null,"受給資格確認",null,null,"特定求職者雇用開発助成金　（中高年層安定雇用支援コース又は就職氷河期世代安定雇用実現コース）の支給決定を受けた。"]
[null,null,null,null,"助成金支給番号",null,null,null,null,null,null,null,"-",null,null,null,null,null,null,null,null,"-"]
[null,null,null,null,"支給決定内容",null,null,"　　支給申請額どおりに支給決定を受けた。"]
[null,null,null,null,null,null,null,"　　支給申請額に対し増額又は減額の支給決定を受けた。（申立書（参考様式1）の提出が必要です。）"]
[null,null,null,null,"以下の東京都の就職支援事業に参加し、職業紹介を受け、対象労働者を採用した。"]
[]
[null,"採用日時点\n所属事務所所在地（区市町村まで）",null,null,null,null,"東京都",null,null,null,null,null,null,null,"派遣（出向）の有無",null,null,null,"　　有る",null,"　　無し"]
[null,"申請日時点\n所属事務所所在地（区市町村まで）",null,null,null,null,"東京都",null,null,null,null,null,null,null,"派遣（出向）の有無",null,null,null,"　　有る",null,"　　無し"]

{"sheet":"様式第1号（別紙3）","index":3,"n_rows":28,"n_cols":23,"rows_kept":28,"cut":false,"hidden":false,"merged":[[26,20,26,22],[27,1,27,5],[27,6,27,7],[27,8,27,13],[27,14,27,17],[27,18,27,19],[27,20,27,22],[26,1,26,5],[26,6,26,7],[26,8,26,13],[26,14,26,17],[26,18,26,19],[20,1,25,2],[20,4,20,22],[21,4,21,6],[22,4,23,6],[22,7,22,22],[23,7,23,22],[24,4,24,22],[25,4,25,22],[18,18,18,22],[19,3,19,7],[19,10,19,11],[19,12,19,17],[19,18,19,22],[17,1,17,2],[17,10,17,13],[18,1,19,2],[18,3,18,7],[18,8,19,9],[18,10,18,11],[18,12,18,17],[14,20,14,22],[16,1,16,2],[16,3,16,12],[16,13,16,18],[16,19,16,21],[14,1,14,5],[14,6,14,7],[14,8,14,13],[14,14,14,17],[14,18,14,19],[11,4,11,22],[13,1,13,5],[13,6,13,7],[13,8,13,13],[13,14,13,17],[13,18,13,19],[13,20,13,22],[12,4,12,22],[7,1,12,2],[7,4,7,22],[8,4,8,6],[9,4,10,6],[9,7,9,22],[10,7,10,22],[5,18,5,22],[6,3,6,7],[6,10,6,11],[6,12,6,17],[6,18,6,22],[5,1,6,2],[5,3,5,7],[5,8,6,9],[5,10,5,11],[5,12,5,17],[3,1,3,2],[3,3,3,12],[3,13,3,18],[3,19,3,21],[4,10,4,13],[4,1,4,2]]}
["様式第1号（第8条関係）別紙3",null,null,null,null,null,null,null,null,null,null,null,null,null,null,null,null,null,null,null,null,null,"（令和８年度申請用）"]
[]
["（４）対象労働者"]
[null,"氏名",null,null,null,null,null,null,null,null,null,null,null,"採用日（非正規雇用労働者として採用\nされた場合はその採用日）時点の満年齢",null,null,null,null,null,null,null,null,"歳"]
[null,"採用日",null,"令和",null,"年",null,"月",null,"日","正規転換日",null,null,null,"令和",null,"年",null,"月",null,"日"]
[null,"コース",null,"　　正規雇用等コース",null,null,null,null,"労働契約期間",null,"　　　無期　",null,"　　３年以上(就職氷河期世代)　　",null,null,null,null,null,"　 ２年以上(シニア世代)"]
[null,null,null,"　　安定有期雇用コース",null,null,null,null,null,null,null,null,"　　１年以上３年未満(就職氷河期世代)",null,null,null,null,null," 　１年以上２年未満(シニア世代)"]
[null,"受給資格確認",null,null,"特定求職者雇用開発助成金　（中高年層安定雇用支援コース又は就職氷河期世代安定雇用実現コース）の支給決定を受けた。"]
[null,null,null,null,"助成金支給番号",null,null,null,null,null,null,null,"-",null,null,null,null,null,null,null,null,"-"]
[null,null,null,null,"支給決定内容",null,null,"　　支給申請額どおりに支給決定を受けた。"]
[null,null,null,null,null,null,null,"　　支給申請額に対し増額又は減額の支給決定を受けた。（申立書（参考様式1）の提出が必要です。）"]
[null,null,null,null,"以下の東京都の就職支援事業に参加し、職業紹介を受け、対象労働者を採用した。"]
[]
[null,"採用日時点\n所属事務所所在地（区市町村まで）",null,null,null,null,"東京都",null,null,null,null,null,null,null,"派遣（出向）の有無",null,null,null,"　　有る",null,"　　無し"]
[null,"申請日時点\n所属事務所所在地（区市町村まで）",null,null,null,null,"東京都",null,null,null,null,null,null,null,"派遣（出向）の有無",null,null,null,"　　有る",null,"　　無し"]
["（５）対象労働者"]
[null,"氏名",null,null,null,null,null,null,null,null,null,null,null,"採用日（非正規雇用労働者として採用\nされた場合はその採用日）時点の満年齢",null,null,null,null,null,null,null,null,"歳"]
[null,"採用日",null,"令和",null,"年",null,"月",null,"日","正規転換日",null,null,null,"令和",null,"年",null,"月",null,"日"]
[null,"コース",null,"　　正規雇用等コース",null,null,null,null,"労働契約期間",null,"　　　無期　",null,"　　３年以上(就職氷河期世代)　　",null,null,null,null,null,"　 ２年以上(シニア世代)"]
[null,null,null,"　　安定有期雇用コース",null,null,null,null,null,null,null,null,"　　１年以上３年未満(就職氷河期世代)",null,null,null,null,null," 　１年以上２年未満(シニア世代)"]
[null,"受給資格確認",null,null,"特定求職者雇用開発助成金　（中高年層安定雇用支援コース又は就職氷河期世代安定雇用実現コース）の支給決定を受けた。"]
[null,null,null,null,"助成金支給番号",null,null,null,null,null,null,null,"-",null,null,null,null,null,null,null,null,"-"]
[null,null,null,null,"支給決定内容",null,null,"　　支給申請額どおりに支給決定を受けた。"]
[null,null,null,null,null,null,null,"　　支給申請額に対し増額又は減額の支給決定を受けた。（申立書（参考様式1）の提出が必要です。）"]
[null,null,null,null,"以下の東京都の就職支援事業に参加し、職業紹介を受け、対象労働者を採用した。"]
[]
[null,"採用日時点\n所属事務所所在地（区市町村まで）",null,null,null,null,"東京都",null,null,null,null,null,null,null,"派遣（出向）の有無",null,null,null,"　　有る",null,"　　無し"]
[null,"申請日時点\n所属事務所所在地（区市町村まで）",null,null,null,null,"東京都",null,null,null,null,null,null,null,"派遣（出向）の有無",null,null,null,"　　有る",null,"　　無し"]

{"sheet":"プルダウン","index":4,"n_rows":68,"n_cols":30,"rows_kept":68,"cut":false,"hidden":true,"merged":[]}
["取組（開始）","取組（終了）","金額（対象者分）","金額（退職金）","金額","市区町村","転換年","１～５人","退職金","結婚・育児","介護","賃上げ","労働者分金額","退職金分金額","結婚・育児","介護","賃上げ","安定有期","労働者分金額","合計",null,null,"アルファベット業種",null,null,null,"正規・有期",null,"就活エクスプレス事業","正規雇用等コース"]
[null,null,null,null,null,null,null,null,null,null,null,null,null,null,null,null,null,null,null,null,null,null,null,null,null,null,"正規・有期",null,"ミドルチャレンジ事業（Jobトライ）","安定有期雇用コース"]
["2026-07-01","2026-09-30",200000,100000,200000,"千代田区","令和５",false,false,false,false,false,{"$f":"IF(H3=TRUE,300000,0)","v":0},{"$f":"IF(I3=TRUE,100000,0)","v":0},{"$f":"IF(J3=TRUE,100000,0)","v":0},{"$f":"IF(K3=TRUE,100000,0)","v":0},{"$f":"IF(L3=TRUE,120000,0)","v":0},false,{"$f":"IF(R3=TRUE,200000,0)","v":0},null,"Ａ","農業，林業",{"$f":"U3&\"  \"&V3","v":"Ａ  農業，林業"},null,null,null,"正規",null,"東京しごと塾事業"]
["2026-08-01","2026-10-31",400000,null,300000,"中央区","令和６",false,false,null,null,false,{"$f":"IF(H4=TRUE,600000,0)","v":0},{"$f":"IF(I4=TRUE,100000,0)","v":0},null,null,{"$f":"IF(L4=TRUE,240000,0)","v":0},false,{"$f":"IF(R4=TRUE,400000,0)","v":0},null,"Ｂ","漁業",{"$f":"U4&\"  \"&V4","v":"Ｂ  漁業"},null,null,null,"有期3年以上",null,"就職チャレンジ多摩事業（ミドルコース）"]
["2026-09-01","2026-11-30",600000,null,400000,"港区","令和７",false,null,null,null,false,{"$f":"IF(H5=TRUE,900000,0)","v":0},null,null,null,{"$f":"IF(L5=TRUE,360000,0)","v":0},false,{"$f":"IF(R5=TRUE,600000,0)","v":0},null,"Ｃ","鉱業，採石業，砂利採取業","Ｃ  鉱業，採石業，砂利採取業",null,null,null,"有期3年未満",null,"キャリアチェンジ再就職支援事業"]
["2026-10-01","2026-12-31",800000,null,500000,"新宿区",null,false,{"$f":"COUNTIF(I3:I5,TRUE)","v":0},{"$f":"COUNTIF(J3:J5,TRUE)","v":0},{"$f":"COUNTIF(K3:K5,TRUE)","v":0},false,{"$f":"IF(H6=TRUE,1200000,0)","v":0},null,null,null,{"$f":"IF(L6=TRUE,480000,0)","v":0},false,{"$f":"IF(R6=TRUE,800000,0)","v":0},null,"Ｄ","建設業","Ｄ  建設業",null,null,null,"ｼﾆｱ2年以上",null,"雇用創出・安定化支援事業"]
["2026-11-01","2027-01-31",1000000,null,600000,"文京区",null,false,null,null,null,false,{"$f":"IF(H7=TRUE,1500000,0)","v":0},null,null,null,{"$f":"IF(L7=TRUE,600000,0)","v":0},false,{"$f":"IF(R7=TRUE,1000000,0)","v":0},null,"Ｅ","製造業","Ｅ  製造業",null,null,null,"ｼﾆｱ2年未満",null,"成長産業人材雇用支援事業"]
["2026-12-01","2027-02-28",null,null,700000,"台東区",null,{"$f":"COUNTIF(H3:H7,TRUE)","v":0},null,null,null,{"$f":"COUNTIF(L3:L7,TRUE)","v":0},null,null,null,null,null,{"$f":"COUNTIF(R3:R7,TRUE)","v":0},null,null,"Ｆ","電気・ガス・熱供給・水道業","Ｆ  電気・ガス・熱供給・水道業",null,null,null,null,null,"ものづくり産業人材確保支援事業"]
[null,null,null,null,null,"墨田区",null,null,null,null,null,null,{"$f":"SUM(M3:M7)","v":0},{"$f":"SUM(N3:N5)","v":0},{"$f":"SUM(O3:O5)","v":0},{"$f":"SUM(P3:P5)","v":0},{"$f":"SUM(Q3:Q7)","v":0},null,{"$f":"SUM(S3:S7)","v":0},{"$f":"SUM(M9:Q9)+S9","v":0},"Ｇ","情報通信業","Ｇ  情報通信業"]
[null,null,null,null,null,"江東区",null,{"$f":"IF(H3=TRUE,1)","v":false},null,null,null,null,null,null,null,null,{"$f":"Q3/120000","v":0},{"$f":"IF(R3=TRUE,1)","v":false},null,null,"Ｈ","運輸業，郵便業","Ｈ  運輸業，郵便業"]
[null,null,null,null,null,"品川区",null,{"$f":"IF(H4=TRUE,2)","v":false},null,null,null,null,null,null,null,null,{"$f":"Q4/120000","v":0},{"$f":"IF(R4=TRUE,2)","v":false},null,null,"Ｉ","卸売業，小売業","Ｉ  卸売業，小売業"]
[null,null,null,null,null,"目黒区",null,{"$f":"IF(H5=TRUE,3)","v":false},null,null,null,null,null,null,null,null,{"$f":"Q5/120000","v":0},{"$f":"IF(R5=TRUE,3)","v":false},null,null,"Ｊ","金融業，保険業","Ｊ  金融業，保険業"]
[null,null,null,null,null,"大田区",null,{"$f":"IF(H6=TRUE,4)","v":false},null,null,null,null,null,null,null,null,null,{"$f":"IF(R6=TRUE,4)","v":false},null,null,"Ｋ","不動産業，物品賃貸業","Ｋ  不動産業，物品賃貸業"]
[null,null,null,null,null,"世田谷区",null,{"$f":"IF(H7=TRUE,5)","v":false},null,null,null,null,null,null,null,null,null,{"$f":"IF(R7=TRUE,5)","v":false},null,null,"Ｌ","学術研究，専門・技術サービス業","Ｌ  学術研究，専門・技術サービス業"]
[null,null,null,null,null,"渋谷区",null,{"$f":"SUM(H10:H14)","v":0},null,null,null,null,null,null,null,null,{"$f":"SUM(Q10:Q12)","v":0},{"$f":"SUM(R10:R14)","v":0},null,null,"Ｍ","宿泊業，飲食サービス業","Ｍ  宿泊業，飲食サービス業"]
[null,null,null,null,null,"中野区",null,null,null,null,null,null,null,null,null,null,null,null,null,null,"Ｎ","生活関連サービス業，娯楽業","Ｎ  生活関連サービス業，娯楽業"]
[null,null,null,null,null,"杉並区",null,null,null,null,null,null,null,null,null,null,null,null,null,null,"Ｏ","教育，学習支援業","Ｏ  教育，学習支援業"]
[null,null,null,null,null,"豊島区",null,null,null,null,null,null,null,null,null,null,null,null,null,null,"Ｐ","医療，福祉","Ｐ  医療，福祉"]
[null,null,null,null,null,"北区",null,null,null,null,null,null,null,null,null,null,null,null,null,null,"Ｑ","複合サービス事業","Ｑ  複合サービス事業"]
[null,null,null,null,null,"荒川区",null,null,null,null,null,null,null,null,null,null,null,null,null,null,"Ｒ","サービス業（他に分類されないもの）","Ｒ  サービス業（他に分類されないもの）"]
[null,null,null,null,null,"板橋区"]
[null,null,null,null,null,"練馬区"]
[null,null,null,null,null,"足立区"]
[null,null,null,null,null,"葛飾区"]
[null,null,null,null,null,"江戸川区"]
[null,null,null,null,null,"八王子市"]
[null,null,null,null,null,"立川市"]
[null,null,null,null,null,"武蔵野市"]
[null,null,null,null,null,"三鷹市"]
[null,null,null,null,null,"青梅市"]
[null,null,null,null,null,"府中市"]
[null,null,null,null,null,"昭島市"]
[null,null,null,null,null,"調布市"]
[null,null,null,null,null,"町田市"]
[null,null,null,null,null,"小金井市"]
[null,null,null,null,null,"小平市"]
[null,null,null,null,null,"日野市"]
[null,null,null,null,null,"東村山市"]
[null,null,null,null,null,"国分寺市"]
[null,null,null,null,null,"国立市"]
[null,null,null,null,null,"福生市"]
[null,null,null,null,null,"狛江市"]
[null,null,null,null,null,"東大和市"]
[null,null,null,null,null,"清瀬市"]
[null,null,null,null,null,"東久留米市"]
[null,null,null,null,null,"武蔵村山市"]
[null,null,null,null,null,"多摩市"]
[null,null,null,null,null,"稲城市"]
[null,null,null,null,null,"羽村市"]
[null,null,null,null,null,"あきる野市"]
[null,null,null,null,null,"西東京市"]
[null,null,null,null,null,"西多摩郡 瑞穂町"]
[null,null,null,null,null,"西多摩郡 日の出町"]
[null,null,null,null,null,"西多摩郡 檜原村"]
[null,null,null,null,null,"西多摩郡 奥多摩町"]
[]
[null,null,null,null,null,"大島町"]
[null,null,null,null,null,"利島村"]
[null,null,null,null,null,"新島村"]
[null,null,null,null,null,"神津島村"]
[]
[null,null,null,null,null,"三宅村"]
[null,null,null,null,null,"御蔵島村"]
[]
[null,null,null,null,null,"八丈町"]
[null,null,null,null,null,"青ヶ島村"]
[]
[null,null,null,null,null,"小笠原村"]